bitfinex-derivatives/quotes_BTCF0:USTF0_20210111
["timestamp","ask_amount","ask_price","bid_price","bid_amount"]
[1610332476079,3.87771608,36982.0,36981.0,1.3383]
[1610332476880,3.87771608,36982.0,36981.0,2.3383]
[1610332478482,3.95831608,36982.0,36981.0,2.3383]
[1610332478680,0.40531608,36982.0,36981.0,2.3383]
[1610332478880,0.40531608,36982.0,36981.0,1.3383]
[1610332479181,0.32471608,36982.0,36981.0,1.3383]
[1610332479581,1.8250487,36982.0,36981.0,1.3383]
[1610332480181,0.3250487,36982.0,36981.0,1.3383]
[1610332480381,0.4070487,36982.0,36981.0,1.3383]
[1610332480581,0.3250487,36982.0,36981.0,1.3383]
[1610332480782,0.3250487,36982.0,36981.0,2.3383]
[1610332481783,0.32471608,36982.0,36981.0,2.3383]
[1610332481985,0.21072608,36982.0,36981.0,2.3383]
[1610332482782,0.21072608,36982.0,36981.0,7.3383]
[1610332484883,0.21072608,36982.0,36981.0,1.3383]
[1610332486286,0.21072608,36982.0,36981.0,1.33852571]
[1610332486683,0.0744,36982.0,36981.0,1.33852571]
[1610332486883,0.0744,36982.0,36981.0,7.33852571]
[1610332487984,0.21072608,36982.0,36981.0,7.33852571]
[1610332489588,3.9226,37001.0,36981.0,7.33852571]
[1610332489986,3.9226,37001.0,36982.0,2.00022567]
[1610332490387,3.9226,37001.0,36983.0,1.5]
[1610332490587,3.9226,37001.0,36983.0,2.09120567]
[1610332490787,3.9226,37001.0,36983.0,0.59098]
[1610332490989,3.9226,37001.0,36984.0,0.5]
[1610332491188,0.0819,37000.0,36984.0,0.5]
[1610332491389,3.9226,37001.0,36984.0,0.5]
[1610332491589,3.9226,37001.0,36984.0,2.0]
[1610332491789,3.9226,37001.0,37000.0,6.0]
[1610332491989,4.05892608,37001.0,37000.0,6.0]
[1610332492791,0.13632608,37001.0,37000.0,7.5]
[1610332492992,0.13632608,37001.0,37000.0,8.0]
[1610332493791,0.2771,37003.0,37000.0,8.0]
[1610332493991,0.13632608,37002.0,37000.0,8.13632608]
[1610332494193,0.13632608,37002.0,37001.0,2.0]
[1610332494593,0.2771,37003.0,37001.0,2.08173]
[1610332494993,0.2771,37003.0,37002.0,1.0]
[1610332495195,0.2771,37003.0,37002.0,2.0]
[1610332495994,0.13632608,37016.0,37002.0,2.13632608]
[1610332496396,0.10584,37031.0,37003.0,1.0]
[1610332496597,0.10584,37031.0,37003.0,3.0]
[1610332496796,0.10584,37031.0,37004.0,2.0]
[1610332497199,0.10584,37031.0,37005.0,0.5]
[1610332497397,0.10584,37031.0,37006.0,1.5]
[1610332497595,3.41953568,37084.0,37016.0,3.6752]
[1610332497796,3.41953568,37084.0,37030.0,6.0]
[1610332497995,0.00033183,37083.0,37030.0,6.0]
[1610332498196,0.08314,37083.0,37030.0,6.0]
[1610332498395,0.08314,37083.0,37031.0,1.0]
[1610332498595,0.08314,37083.0,37035.0,3.3628]
[1610332498797,0.08314,37083.0,37035.0,3.4563]
[1610332498999,0.08314,37083.0,37036.0,1.0]
[1610332499197,0.08314,37083.0,37036.0,1.5]
[1610332499397,0.08314,37083.0,37036.0,0.5]
[1610332499598,0.08314,37083.0,37036.0,1.0]
[1610332499797,0.08314,37083.0,37037.0,1.5]
[1610332499999,0.13632608,37038.0,37037.0,2.0]
[1610332500197,0.13632608,37038.0,37037.0,1.0]
[1610332500798,0.10848,37061.0,37037.0,1.0]
[1610332500999,0.10848,37061.0,37037.0,1.08618]
[1610332501199,0.10848,37061.0,37038.0,1.5]
[1610332501399,0.10848,37061.0,37038.0,2.0]
[1610332501998,0.13632608,37039.0,37038.0,1.0]
[1610332502401,0.13632608,37039.0,37038.0,0.5]
[1610332502601,0.13632608,37039.0,37037.0,0.08618]
[1610332502999,0.13632608,37039.0,37038.0,1.5]
[1610332503202,0.13632608,37039.0,37038.0,2.0]
[1610332503805,1.63632608,37039.0,37038.0,2.0]
[1610332504403,0.13632608,37039.0,37038.0,2.0]
[1610332505204,0.13632608,37039.0,37038.0,1.38949]
[1610332505404,1.63632608,37039.0,37038.0,1.38949]
[1610332505803,0.13632608,37039.0,37038.0,1.38949]
[1610332508306,0.24045608,37039.0,37038.0,1.38949]
[1610332512609,0.13632608,37039.0,37038.0,1.38949]
[1610332514613,0.13665812,37039.0,37038.0,1.38949]
[1610332514813,0.13632608,37039.0,37038.0,1.38949]
[1610332515814,1.13632608,37039.0,37038.0,1.38949]
[1610332516215,2.6366581,37039.0,37038.0,1.38949]
[1610332517817,7.6366581,37039.0,37038.0,1.38949]
[1610332519419,7.6698761,37039.0,37038.0,1.20519]
[1610332519619,7.6698761,37039.0,37038.0,1.04659]
[1610332521922,1.6698761,37039.0,37038.0,1.04659]
[1610332522122,1.6698761,37039.0,37038.0,0.72106]
[1610332522322,1.6698761,37039.0,37038.0,0.26852]
[1610332522522,1.6698761,37039.0,37038.0,1.0]
[1610332522722,1.6698761,37039.0,36999.0,3.8993]
[1610332522922,0.00033227,37038.0,37000.0,1.5]
[1610332523124,0.00033227,37038.0,37000.0,1.337]
[1610332523125,0.03355968,37038.0,37000.0,1.337]
[1610332523322,0.10001884,37038.0,37000.0,1.337]
[1610332523524,1.5,37037.0,37000.0,1.2936]
[1610332523724,0.0664685,37036.0,37001.0,1.5]
[1610332523923,0.0664685,37036.0,36923.0,0.1556]
[1610332523924,0.10003509,37036.0,36923.0,0.1556]
[1610332524124,0.13632608,36924.0,36923.0,0.1556]
[1610332524525,0.13632608,36924.0,36923.0,0.15582581]
[1610332524725,0.09858,36971.0,36923.0,0.15582581]
[1610332524924,0.09858,36971.0,36924.0,1.0]
[1610332525124,0.09858,36971.0,36925.0,1.00022581]
[1610332525524,0.09858,36971.0,36926.0,0.285]
[1610332525726,1.5,37034.0,36926.0,0.285]
[1610332525727,3.0454,36962.0,36926.0,0.285]
[1610332525924,3.0454,36962.0,36926.0,1.285]
[1610332526125,3.0454,36962.0,36937.0,0.13632608]
[1610332526325,3.0454,36962.0,36937.0,0.21922608]
[1610332526725,3.0454,36962.0,36938.0,1.0]
[1610332527125,3.0454,36962.0,36939.0,1.0]
[1610332527326,3.0454,36962.0,36939.0,1.5]
[1610332527526,3.0454,36962.0,36939.0,0.5]
[1610332527726,3.0454,36962.0,36940.0,1.0]
[1610332527925,3.0454,36962.0,36940.0,1.5]
[1610332528126,3.0454,36962.0,36948.0,0.13632608]
[1610332528328,3.0454,36962.0,36948.0,0.24459608]
[1610332528526,4.022,36991.0,36948.0,0.24459608]
[1610332528926,4.022,36991.0,36949.0,1.0]
[1610332529326,4.022,36991.0,36950.0,1.0]
[1610332529527,4.0268,37024.0,36950.0,4.368]
[1610332529727,4.0268,37024.0,36950.0,3.368]
[1610332529928,4.0268,37024.0,36950.0,4.368]
[1610332530129,0.13632608,36951.0,36950.0,4.368]
[1610332530328,0.13632608,36951.0,36950.0,3.868]
[1610332530528,0.07436,36978.0,36950.0,4.368]
[1610332530730,0.07436,36978.0,36950.0,4.868]
[1610332530931,0.07436,36978.0,36951.0,0.5]
[1610332531129,0.07436,36978.0,36951.0,2.0]
[1610332531329,4.0268,37024.0,36951.0,2.0]
[1610332531531,4.0268,37024.0,36952.0,1.1556]
[1610332531731,0.00033223,37023.0,36952.0,1.15582569]
[1610332531931,0.09882223,37023.0,36953.0,0.00022569]
[1610332532131,0.09882223,37023.0,36964.0,0.13632608]
[1610332532332,0.09882223,37023.0,36964.0,0.24771608]
[1610332532531,0.00033227,37022.0,36964.0,0.24771608]
[1610332532932,0.00033227,37022.0,37007.0,1.0]
[1610332533331,0.00033227,37022.0,37008.0,0.5]
[1610332533536,0.09849,37023.0,37008.0,0.5]
[1610332533734,0.09849,37023.0,37009.0,0.5]
[1610332534034,0.09849,37023.0,37009.0,1.0]
[1610332534235,0.13632608,37010.0,37009.0,0.5]
[1610332534635,0.13632608,37010.0,37009.0,1.0]
[1610332534835,0.13632608,37010.0,37009.0,1.5]
[1610332535234,0.13632608,37010.0,37009.0,2.0]
[1610332536334,0.21662608,37010.0,37009.0,2.0]
[1610332539136,0.13632608,37010.0,37009.0,2.0]
[1610332540238,0.21752608,37010.0,37009.0,2.0]
[1610332542238,0.13632608,37010.0,37009.0,2.0]
[1610332543239,0.21732608,37010.0,37009.0,2.0]
[1610332544139,1.71732608,37010.0,37009.0,2.0]
[1610332544540,1.71732608,37010.0,37009.0,1.992]
[1610332544739,1.63665838,37010.0,37009.0,1.9748]
[1610332545140,0.13665838,37010.0,37009.0,1.9748]
[1610332545340,1.63665838,37010.0,37009.0,1.9748]
[1610332545739,1.71865838,37010.0,37009.0,1.9748]
[1610332545941,1.63665838,37010.0,37009.0,1.9748]
[1610332546940,7.63665838,37010.0,37009.0,1.8589]
[1610332547141,7.66989701,37010.0,37009.0,1.8589]
[1610332547341,7.66989701,37010.0,36975.0,3.5675]
[1610332547741,7.66989701,37010.0,36976.0,2.0]
[1610332547941,0.03358064,37009.0,36976.0,1.6933]
[1610332548340,0.13632608,36977.0,36976.0,1.6933]
[1610332548540,1.70978608,36977.0,36976.0,1.6933]
[1610332548741,1.71011867,36977.0,36976.0,1.6933]
[1610332548943,0.21011867,36977.0,36976.0,1.35683]
[1610332549143,1.71011867,36977.0,36976.0,1.35683]
[1610332549342,1.71011867,36977.0,36976.0,1.27703]
[1610332549543,1.71011867,36977.0,36976.0,0.77703]
[1610332549742,0.21011867,36977.0,36976.0,0.77703]
[1610332549943,0.21011867,36977.0,36976.0,0.77033]
[1610332550143,1.71011867,36977.0,36976.0,0.27033]
[1610332550344,0.21011867,36977.0,36963.0,0.5]
[1610332550543,0.21011867,36977.0,36976.0,0.5]
[1610332550743,0.20978608,36977.0,36976.0,2.0]
[1610332550944,1.70978608,36977.0,36976.0,1.71493]
[1610332551144,0.24338462,36977.0,36976.0,1.71493]
[1610332551944,0.21011874,36977.0,36976.0,1.71493]
[1610332552145,1.71011874,36977.0,36976.0,1.5]
[1610332552345,0.21011874,36977.0,36976.0,1.5]
[1610332552745,3.92491874,36977.0,36976.0,2.0]
[1610332553046,5.42491874,36977.0,36976.0,1.59288]
[1610332553245,5.42491874,36977.0,36976.0,1.55228]
[1610332553447,5.42491874,36977.0,36976.0,1.53338]
[1610332553646,5.42491874,36977.0,36976.0,1.47388]
[1610332553847,5.42491874,36977.0,36976.0,1.13268]
[1610332554047,5.42491874,36977.0,36976.0,1.05418]
[1610332554345,5.45819471,36977.0,36976.0,0.37017]
[1610332554544,5.45819471,36977.0,36920.0,3.3986]
[1610332554945,0.00033278,36976.0,36921.0,1.5]
[1610332555145,0.03361037,36976.0,36921.0,1.5]
[1610332555346,0.03361037,36976.0,36922.0,1.5]
[1610332555546,0.00033278,36976.0,36922.0,1.5]
[1610332555745,0.00033279,36975.0,36922.0,1.5]
[1610332556245,0.13632608,36923.0,36922.0,1.5]
[1610332556446,0.13632608,36923.0,36920.0,3.3986]
[1610332556847,0.13632608,36923.0,36922.0,1.0]
[1610332557047,0.13632608,36923.0,36922.0,1.5]
[1610332557247,0.13632608,36923.0,36922.0,1.0]
[1610332557649,0.13632608,36923.0,36922.0,2.0]
[1610332557849,0.13632608,36923.0,36922.0,1.5]
[1610332558251,0.13632608,36923.0,36922.0,2.0]
[1610332561153,0.21872608,36923.0,36922.0,2.0]
[1610332561352,0.13632608,36923.0,36922.0,2.0]
[1610332562554,4.5231,36934.0,36922.0,2.0]
[1610332562956,4.5231,36934.0,36923.0,2.0]
[1610332563357,0.0806,36933.0,36923.0,0.5]
[1610332563958,0.0806,36933.0,36924.0,1.5]
[1610332564156,0.0806,36933.0,36924.0,1.58282]
[1610332564359,0.13632608,36925.0,36924.0,0.58282]
[1610332564957,0.13632608,36925.0,36924.0,1.58282]
[1610332565157,0.13632608,36925.0,36924.0,3.08282]
[1610332565357,0.13632608,36925.0,36924.0,2.58282]
[1610332565757,0.13632608,36925.0,36924.0,3.08282]
[1610332568861,0.13632608,36925.0,36924.0,2.08282]
[1610332570861,0.13632608,36925.0,36924.0,3.08282]
[1610332572562,0.13632608,36925.0,36924.0,3.02382]
[1610332572964,0.13632608,36925.0,36924.0,2.02382]
[1610332573164,0.13632608,36925.0,36924.0,1.96202]
[1610332574668,0.13632608,36925.0,36924.0,1.39982]
[1610332574868,6.13665912,36925.0,36876.0,0.08302]
[1610332575068,0.03364332,36924.0,36876.0,0.08302]
[1610332575268,0.03364332,36924.0,36887.0,1.0]
[1610332575668,0.10027612,36924.0,36888.0,1.0]
[1610332576268,0.082,36923.0,36888.0,0.9937]
[1610332576469,0.13632608,36889.0,36888.0,0.9133]
[1610332576670,0.24308608,36889.0,36888.0,0.9133]
[1610332576871,0.2434193,36889.0,36888.0,0.9133]
[1610332577471,0.2434193,36889.0,36877.0,0.5]
[1610332577870,0.2434193,36889.0,36888.0,0.5]
[1610332578070,0.24308608,36889.0,36888.0,0.5]
[1610332578271,0.24308608,36889.0,36888.0,1.9275]
[1610332578472,0.24308608,36889.0,36888.0,1.5]
[1610332578672,0.24341936,36889.0,36888.0,1.5]
[1610332578872,0.24341936,36889.0,36888.0,1.434]
[1610332579672,0.24341936,36889.0,36888.0,1.5]
[1610332580073,0.24341936,36889.0,36888.0,2.0]
[1610332580474,0.24308608,36889.0,36888.0,2.0]
[1610332580675,0.24341937,36889.0,36888.0,2.0]
[1610332581077,0.24308608,36889.0,36888.0,2.0]
[1610332581278,0.24341936,36889.0,36888.0,2.0]
[1610332581476,0.24308608,36889.0,36888.0,2.0]
[1610332586182,0.13632608,36889.0,36888.0,2.0]
[1610332587982,0.21652608,36889.0,36888.0,2.0]
[1610332588382,0.13632608,36889.0,36888.0,2.0]
[1610332588984,1.0,36942.0,36888.0,8.0]
[1610332589183,1.0,36942.0,36889.0,1.0]
[1610332589386,0.00033294,36930.0,36889.0,1.5]
[1610332589784,0.09025,36937.0,36890.0,1.0]
[1610332589984,0.0802,36936.0,36890.0,1.5]
[1610332590184,0.0805329,36936.0,36890.0,1.5]
[1610332590387,0.13632608,36891.0,36890.0,1.0]
[1610332590584,0.13632608,36891.0,36890.0,0.5]
[1610332590985,0.13632608,36891.0,36885.0,0.2812]
[1610332591587,0.21752608,36891.0,36888.0,4.0246]
[1610332591787,0.21752608,36891.0,36890.0,1.5]
[1610332591988,0.21752608,36891.0,36890.0,2.0]
[1610332592189,0.21752608,36891.0,36890.0,0.5]
[1610332592591,0.21752608,36891.0,36889.0,0.5]
[1610332592592,0.13632608,36891.0,36889.0,0.5]
[1610332592788,0.13632608,36891.0,36890.0,1.5]
[1610332594189,0.13632608,36891.0,36890.0,2.0]
[1610332594589,0.21792608,36891.0,36890.0,2.0]
[1610332594990,1.21792608,36891.0,36890.0,2.0]
[1610332595390,1.21792608,36891.0,36890.0,1.5]
[1610332595790,1.21792608,36891.0,36890.0,2.0]
[1610332596492,1.13632608,36891.0,36890.0,2.0]
[1610332596894,0.13632608,36891.0,36890.0,2.0]
[1610332597494,0.21792608,36891.0,36890.0,2.0]
[1610332597893,0.13632608,36891.0,36890.0,2.0]
[1610332598795,0.21852608,36891.0,36890.0,2.0]
[1610332598995,0.13632608,36891.0,36890.0,2.0]
[1610332599999,0.21662608,36891.0,36890.0,2.0]
[1610332600198,0.13632608,36891.0,36890.0,2.0]
[1610332600997,0.13632608,36891.0,36890.0,3.0]
[1610332602801,0.13632608,36891.0,36890.0,2.0]
[1610332605004,0.21802608,36891.0,36890.0,2.0]
[1610332606505,0.13632608,36891.0,36890.0,2.0]
[1610332606905,0.13632608,36891.0,36890.0,8.0]
[1610332608509,0.13632608,36893.0,36890.0,8.00022115]
[1610332608711,0.13632608,36893.0,36890.0,2.00022115]
[1610332609112,0.13632608,36893.0,36891.0,0.00022115]
[1610332609511,0.13632608,36893.0,36891.0,1.00022115]
[1610332609712,0.0808,36892.0,36891.0,1.0]
[1610332609911,0.0808,36892.0,36891.0,1.5]
[1610332610113,0.0808,36892.0,36891.0,0.5]
[1610332610311,0.0808,36892.0,36891.0,0.50022116]
[1610332610511,0.13632608,36893.0,36890.0,0.5]
[1610332610712,0.13632608,36893.0,36891.0,1.0]
[1610332610917,0.13632608,36893.0,36892.0,0.5]
[1610332611313,0.13632608,36893.0,36892.0,2.0]
[1610332611512,0.21862608,36893.0,36892.0,1.5]
[1610332611713,0.21862608,36893.0,36892.0,1.0]
[1610332612013,0.21862608,36893.0,36892.0,1.5]
[1610332612214,0.21862608,36893.0,36892.0,2.0]
[1610332612414,0.13632608,36893.0,36892.0,2.0]
[1610332613017,0.13632608,36893.0,36892.0,2.00022118]
[1610332613416,0.21812608,36893.0,36892.0,2.00022118]
[1610332615214,0.13632608,36893.0,36892.0,2.00022118]
[1610332616815,0.13632608,36893.0,36892.0,3.00022118]
[1610332617414,0.13632608,36893.0,36892.0,3.0]
[1610332618015,0.25037608,36893.0,36892.0,3.0]
[1610332618817,0.25037608,36893.0,36892.0,2.0]
[1610332619216,0.25070928,36893.0,36892.0,2.0]
[1610332619617,4.28380928,36893.0,36892.0,2.0]
[1610332622022,4.28347608,36893.0,36892.0,2.0]
[1610332622824,5.28347608,36893.0,36892.0,2.0]
[1610332623524,5.28380936,36893.0,36892.0,2.0]
[1610332624625,4.28380936,36893.0,36892.0,2.0]
[1610332628228,5.78380936,36893.0,36892.0,1.506]
[1610332628427,5.78380936,36893.0,36892.0,0.45793]
[1610332628628,5.78380936,36893.0,36848.0,3.4593]
[1610332628830,11.78380936,36893.0,36849.0,1.5]
[1610332629028,0.00033345,36892.0,36860.0,3.3887]
[1610332629230,0.00033345,36892.0,36849.0,2.0]
[1610332629630,0.08203345,36892.0,36850.0,0.5]
[1610332630031,0.00033345,36891.0,36850.0,0.5]
[1610332630432,0.0817,36892.0,36838.0,0.5]
[1610332630633,0.13632608,36839.0,36838.0,0.5]
[1610332631334,0.13632608,36839.0,36830.0,0.09258]
[1610332632334,0.13632608,36839.0,36838.0,1.0]
[1610332632935,0.13632608,36839.0,36838.0,1.5]
[1610332633534,0.13632608,36839.0,36838.0,2.0]
[1610332636737,1.13632608,36839.0,36838.0,2.0]
[1610332637939,1.23956608,36839.0,36838.0,2.0]
[1610332638739,0.23956608,36839.0,36838.0,2.0]
[1610332639141,0.13632608,36839.0,36838.0,2.0]
[1610332642942,0.11511,36874.0,36838.0,2.0]
[1610332643144,0.11511,36874.0,36839.0,1.5]
[1610332643343,0.11511,36874.0,36839.0,2.0]
[1610332643743,0.11511,36874.0,36839.0,0.5]
[1610332643946,3.24887471,36922.0,36840.0,0.5]
[1610332644143,3.24887471,36922.0,36840.0,1.0]
[1610332644544,0.1556,36932.0,36855.0,0.13632608]
[1610332644743,3.24827653,36933.0,36855.0,0.13632608]
[1610332644944,3.24827653,36933.0,36856.0,0.2906]
[1610332645144,0.00033321,36931.0,36856.0,1.7906]
[1610332645344,0.09662321,36931.0,36856.0,3.7906]
[1610332645544,0.09629,36931.0,36857.0,1.5]
[1610332645744,0.03364924,36930.0,36858.0,1.5]
[1610332645944,0.03364924,36930.0,36859.0,0.2928]
[1610332646144,0.03364924,36930.0,36860.0,1.5]
[1610332646343,0.00033316,36930.0,36860.0,1.5]
[1610332646545,0.00033316,36930.0,36879.0,0.13632608]
[1610332646744,0.00033316,36930.0,36879.0,0.25175608]
[1610332647144,0.00033316,36930.0,36929.0,1.0]
[1610332648646,0.13665924,36930.0,36929.0,1.0]
[1610332648845,0.13632608,36930.0,36929.0,1.0]
[1610332649246,0.13665913,36930.0,36916.0,1.0]
[1610332649447,0.00033305,36929.0,36916.0,1.0]
[1610332650648,0.13632608,36917.0,36916.0,1.0]
[1610332650847,0.23457608,36917.0,36916.0,1.0]
[1610332651249,1.23457608,36917.0,36896.0,4.202]
[1610332651951,1.23457608,36917.0,36916.0,1.0]
[1610332652250,1.23457608,36917.0,36916.0,1.5]
[1610332652653,1.23457608,36917.0,36916.0,1.0]
[1610332653052,1.23457608,36917.0,36916.0,1.5]
[1610332653252,0.23457608,36917.0,36916.0,2.0]
[1610332653451,0.23457608,36917.0,36916.0,1.5]
[1610332653655,0.23457608,36917.0,36916.0,2.0]
[1610332654253,0.13632608,36917.0,36916.0,2.0]
[1610332657163,0.24282608,36917.0,36916.0,2.0]
[1610332659062,0.13632608,36917.0,36916.0,2.0]
[1610332659263,0.13632608,36917.0,36916.0,3.0]
[1610332661164,0.13632608,36917.0,36916.0,2.0]
[1610332663168,1.13632608,36917.0,36916.0,2.0]
[1610332665169,0.13632608,36917.0,36916.0,2.0]
[1610332668171,0.13665916,36917.0,36916.0,2.0]
[1610332673079,0.16997784,36917.0,36916.0,2.0]
[1610332673277,1.16997784,36917.0,36916.0,2.0]
[1610332673476,2.66997784,36917.0,36916.0,2.0]
[1610332673675,2.73661604,36917.0,36916.0,2.0]
[1610332674076,2.73661604,36917.0,36916.0,1.849]
[1610332674679,2.81711604,36917.0,36916.0,1.52766]
[1610332675180,7.81711604,36917.0,36916.0,1.52766]
[1610332675679,7.81711604,36917.0,36916.0,1.18511]
[1610332676079,11.61581604,36917.0,36916.0,1.18511]
[1610332676480,11.61581604,36917.0,36916.0,1.08231]
[1610332676681,11.61581604,36917.0,36871.0,3.8253]
[1610332676881,5.71582653,36917.0,36871.0,3.8253]
[1610332677081,0.20036999,36916.0,36872.0,1.5]
[1610332677281,3.26278587,36906.0,36872.0,1.5]
[1610332677481,1.5,36905.0,36872.0,1.5]
[1610332677881,0.1003559,36904.0,36872.0,1.5]
[1610332678081,1.5,36903.0,36872.0,1.5]
[1610332678482,3.3894,36899.0,36872.0,1.5]
[1610332678682,0.13632608,36873.0,36872.0,1.5]
[1610332678883,1.23406608,36873.0,36872.0,1.5]
[1610332679082,1.23406608,36873.0,36872.0,1.0]
[1610332679282,1.23439954,36873.0,36872.0,1.0]
[1610332679483,1.23439954,36873.0,36872.0,0.5]
[1610332679683,1.23439954,36873.0,36872.0,1.0]
[1610332680284,1.23406608,36873.0,36872.0,1.5]
[1610332680683,1.23406608,36873.0,36872.0,2.0]
[1610332680883,0.23406608,36873.0,36872.0,2.0]
[1610332681886,0.13632608,36873.0,36872.0,2.0]
[1610332686990,0.13632608,36873.0,36872.0,3.0]
[1610332690991,0.13632608,36873.0,36872.0,2.0]
[1610332702110,1.63665954,36873.0,36872.0,2.0]
[1610332702911,7.63665954,36873.0,36872.0,2.0]
[1610332703111,7.63665954,36873.0,36872.0,1.934]
[1610332703710,7.67001606,36873.0,36872.0,1.806]
[1610332704111,7.67001606,36873.0,36872.0,1.7982]
[1610332704313,11.61461606,36873.0,36872.0,1.7982]
[1610332704510,11.61461606,36873.0,36872.0,1.7571]
[1610332704712,11.61461606,36873.0,36872.0,1.6187]
[1610332704914,5.61461606,36873.0,36872.0,1.6187]
[1610332705312,5.58125954,36873.0,36872.0,1.3177]
[1610332705513,5.61462458,36873.0,36836.0,3.8699]
[1610332705713,11.61462458,36873.0,36836.0,3.8699]
[1610332705917,0.03369914,36872.0,36837.0,1.5]
[1610332706114,3.27450162,36862.0,36837.0,1.5]
[1610332706313,1.5,36861.0,36837.0,1.5]
[1610332706715,0.00033372,36860.0,36837.0,1.5]
[1610332706916,0.13632608,36838.0,36837.0,1.5]
[1610332707116,0.21607608,36838.0,36837.0,0.5]
[1610332707316,0.21607608,36838.0,36836.0,3.8699]
[1610332707317,0.2164098,36838.0,36836.0,3.8699]
[1610332707516,0.2164098,36838.0,36837.0,1.5]
[1610332708316,0.2164098,36838.0,36837.0,0.23]
[1610332708518,0.6938098,36838.0,36810.0,4.0634]
[1610332708716,0.6938098,36838.0,36837.0,0.5]
[1610332708917,0.69347608,36838.0,36837.0,0.4158]
[1610332709116,0.69347608,36838.0,36837.0,0.2419]
[1610332709517,0.69347608,36838.0,36837.0,0.7419]
[1610332710618,0.69347608,36838.0,36837.0,1.2419]
[1610332711418,0.69347608,36838.0,36837.0,1.2103]
[1610332711617,0.69347608,36838.0,36837.0,0.8056]
[1610332711817,1.69347608,36838.0,36837.0,0.8056]
[1610332712019,1.69347608,36838.0,36837.0,1.3056]
[1610332712418,1.69347608,36838.0,36837.0,1.8056]
[1610332713721,4.36977608,36838.0,36837.0,1.8056]
[1610332713921,4.36977608,36838.0,36837.0,1.3056]
[1610332714321,4.36977608,36838.0,36837.0,1.8056]
[1610332715723,3.36977608,36838.0,36837.0,1.8056]
[1610332720728,3.2589,36861.0,36837.0,1.8056]
[1610332720929,0.13632608,36838.0,36837.0,1.8056]
[1610332721129,0.13632608,36838.0,36837.0,7.8056]
[1610332722231,1.0,36895.0,36837.0,7.8056]
[1610332722630,1.0,36901.0,36838.0,1.5]
[1610332722830,1.0,36901.0,36839.0,0.2763]
[1610332723030,0.13632608,36852.0,36845.0,0.13632608]
[1610332723630,0.09304,36885.0,36845.0,0.13632608]
[1610332723831,0.09304,36885.0,36845.0,0.21015608]
[1610332724032,0.09304,36885.0,36851.0,6.0]
[1610332724831,4.3083,36887.0,36852.0,1.0]
[1610332725032,0.13632608,36862.0,36852.0,1.5]
[1610332725231,0.13632608,36862.0,36853.0,1.0]
[1610332725431,0.13632608,36862.0,36853.0,1.57147]
[1610332725631,0.13632608,36862.0,36854.0,1.0]
[1610332725832,0.13632608,36862.0,36854.0,1.5]
[1610332726031,0.13632608,36862.0,36855.0,1.5]
[1610332726633,0.13632608,36862.0,36855.0,0.5]
[1610332727032,0.13632608,36856.0,36855.0,2.0]
[1610332727232,0.13632608,36856.0,36855.0,1.5]
[1610332727433,0.13632608,36856.0,36855.0,0.5]
[1610332727632,0.13632608,36856.0,36855.0,1.0]
[1610332727834,0.13632608,36856.0,36855.0,2.0]
[1610332728034,0.13632608,36856.0,36855.0,1.5]
[1610332728234,0.13632608,36856.0,36855.0,2.0]
[1610332730036,0.13632608,36856.0,36855.0,3.0]
[1610332732040,0.13632608,36856.0,36855.0,2.0]
[1610332733240,0.13632608,36856.0,36855.0,2.07347]
[1610332734041,0.09354,36879.0,36855.0,2.07347]
[1610332734240,3.3787,36885.0,36855.0,2.07347]
[1610332734443,3.3787,36885.0,36856.0,2.0]
[1610332734841,0.00033345,36884.0,36857.0,2.0]
[1610332735041,0.13632608,36861.0,36857.0,2.13632608]
[1610332735240,0.13632608,36861.0,36858.0,1.0]
[1610332735440,0.13632608,36861.0,36858.0,1.5]
[1610332735643,3.3787,36885.0,36858.0,1.0]
[1610332735840,3.3787,36885.0,36859.0,2.0]
[1610332736042,3.3787,36885.0,36860.0,6.0]
[1610332736441,3.3787,36885.0,36861.0,1.5]
[1610332736642,3.3787,36885.0,36861.0,2.0]
[1610332736842,3.3787,36885.0,36862.0,1.5]
[1610332737044,0.13632608,36865.0,36862.0,2.13632608]
[1610332737242,3.3787,36885.0,36863.0,0.5]
[1610332737442,3.3787,36885.0,36863.0,0.59128]
[1610332737844,3.3787,36885.0,36864.0,1.5]
[1610332738043,3.3787,36885.0,36884.0,6.0]
[1610332738443,3.3787,36885.0,36884.0,6.07719]
[1610332738643,3.27022788,36921.0,36884.0,6.07719]
[1610332739044,0.0003332,36920.0,36885.0,0.13632608]
[1610332739245,3.27022788,36921.0,36885.0,2.13632608]
[1610332739648,0.11422,36925.0,36886.0,1.5]
[1610332740047,0.00033318,36924.0,36886.0,2.0]
[1610332740246,0.00033318,36924.0,36886.0,0.5]
[1610332740446,0.00033318,36924.0,36887.0,0.5]
[1610332740647,0.00033318,36924.0,36887.0,2.0]
[1610332741047,0.13632608,36888.0,36885.0,1.5]
[1610332741452,0.13632608,36888.0,36884.0,0.07719]
[1610332741649,0.13632608,36888.0,36885.0,0.5]
[1610332741851,0.13632608,36888.0,36886.0,4.0168]
[1610332742048,0.13632608,36888.0,36887.0,1.0]
[1610332743549,0.13632608,36888.0,36887.0,2.0]
[1610332743949,0.13632608,36888.0,36887.0,1.0]
[1610332744750,0.13632608,36888.0,36887.0,1.5]
[1610332745153,0.13632608,36888.0,36887.0,2.0]
[1610332745552,0.09098,36914.0,36887.0,3.5]
[1610332745757,0.11422,36925.0,36887.0,3.5]
[1610332745956,3.26267922,36930.0,36913.0,6.0]
[1610332746153,3.26202585,36941.0,36913.0,6.07356]
[1610332746353,0.00033301,36929.0,36913.0,6.07356]